fUSD/lending_fUSD_20240125
["ID","MTS","AMOUNT","RATE_DAILY","PERIOD"]
[312674519,1706142696111,-500.0,0.0005178,31]
[312674520,1706142696121,-496.05671168,0.0005178,31]
[312674521,1706142696130,-500.0,0.0005178,31]
[312674522,1706142696139,-500.0,0.0005178,31]
[312674523,1706142696149,-500.0,0.0005178,31]
[312674524,1706142696159,-500.0,0.0005178,31]
[312674525,1706142696168,-500.0,0.0005178,31]
[312674526,1706142696177,-500.0,0.0005178,31]
[312674527,1706142696187,-500.0,0.0005178,31]
[312674528,1706142696196,-781.79,0.0005178,31]
[312674529,1706142696206,-500.0,0.0005178,31]
[312674530,1706142696215,-500.0,0.0005178,31]
[312674531,1706142696224,-383.72775709,0.0005178,31]
[312674532,1706142696234,-500.0,0.0005178,31]
[312674533,1706142696244,-500.0,0.0005178,31]
[312674534,1706142696253,-500.0,0.0005178,31]
[312674535,1706142696262,-500.0,0.0005178,31]
[312674536,1706142696272,-500.0,0.0005178,31]
[312674537,1706142696281,-1179.82,0.0005178,31]
[312674538,1706142696291,-3431.79,0.0005178,15]
[312674539,1706142696300,-500.0,0.0005178,31]
[312674540,1706142696310,-568.5,0.0005178,31]
[312674541,1706142696319,-500.0,0.0005178,31]
[312674542,1706142696330,-500.0,0.0005178,31]
[312674543,1706142696339,-1640.43,0.0005178,31]
[312674544,1706142696349,-500.0,0.0005178,31]
[312674545,1706142696359,-500.0,0.0005178,31]
[312674546,1706142696368,-500.0,0.0005178,31]
[312674547,1706142696377,-599.18,0.0005178,31]
[312674548,1706142696387,-500.0,0.0005178,31]
[312674549,1706142696397,-826.78,0.0005178,120]
[312674550,1706142696406,-3450.92,0.0005178,31]
[312674551,1706142696415,-500.0,0.0005178,31]
[312674552,1706142696424,-500.0,0.0005178,31]
[312674553,1706142696433,-500.0,0.0005178,31]
[312674554,1706142696443,-500.0,0.0005178,31]
[312674555,1706142696451,-500.0,0.0005178,31]
[312674556,1706142696461,-500.0,0.0005178,31]
[312674557,1706142696469,-500.0,0.0005178,31]
[312674558,1706142696478,-549.31,0.0005178,31]
[312674559,1706142696488,-951.5,0.0005178,31]
[312674560,1706142696497,-500.0,0.0005178,31]
[312674561,1706142696507,-500.0,0.0005178,31]
[312674562,1706142696517,-455.42439608,0.0005178,31]
[312674563,1706142696527,-506.14,0.0005178,31]
[312674564,1706142696537,-500.0,0.0005178,31]
[312674565,1706142696547,-500.0,0.0005178,31]
[312674566,1706142696556,-640.40461725,0.0005178,31]
[312674567,1706142696566,-500.0,0.0005178,31]
[312674568,1706142696577,-500.0,0.0005178,31]
[312674569,1706142696586,-500.0,0.0005178,31]
[312674570,1706142696597,-500.0,0.0005178,31]
[312674571,1706142696607,-500.0,0.0005178,31]
[312674572,1706142696618,-500.0,0.0005178,31]
[312674573,1706142696629,-500.0,0.0005178,31]
[312674574,1706142696639,-500.0,0.0005178,31]
[312674575,1706142696649,-205.54572122,0.0005178,31]
[312674576,1706142696659,-533.45378978,0.0005178,31]
[312674577,1706142696669,-586.01,0.0005178,31]
[312674578,1706142696678,-610.51,0.0005178,2]
[312674579,1706142696688,-500.0,0.0005178,31]
[312674580,1706142696698,-1518.82,0.0005178,2]
[312674581,1706142696707,-500.0,0.0005178,31]
[312674582,1706142696717,-787.32,0.0005178,31]
[312674583,1706142696727,-500.0,0.0005178,31]
[312674584,1706142696737,-500.0,0.0005178,31]
[312674585,1706142696746,-500.0,0.0005178,31]
[312674586,1706142696755,-696.9,0.0005178,31]
[312674587,1706142696766,-500.0,0.0005178,31]
[312674588,1706142696776,-500.0,0.0005178,120]
[312674589,1706142696786,-839.16,0.0005178,31]
[312674590,1706142696798,-949.05,0.0005178,31]
[312674591,1706142696809,-1090.8,0.0005178,7]
[312674592,1706142696819,-500.0,0.0005178,31]
[312674593,1706142696830,-500.0,0.0005178,31]
[312674594,1706142696841,-500.0,0.0005178,31]
[312674595,1706142696851,-586.8,0.0005178,31]
[312674596,1706142696861,-500.0,0.0005178,31]
[312674597,1706142696935,-500.0,0.0005178,31]
[312674598,1706142696944,-500.0,0.0005178,31]
[312674599,1706142696955,-564.27643704,0.0005178,31]
[312674600,1706142696964,-500.0,0.0005178,31]
[312674601,1706142696974,-500.0,0.0005178,31]
[312674602,1706142696983,-500.0,0.0005178,31]
[312674603,1706142696992,-500.0,0.0005178,31]
[312674604,1706142697002,-500.0,0.0005178,31]
[312674605,1706142697012,-500.0,0.0005178,31]
[312674606,1706142697021,-500.0,0.0005178,31]
[312674607,1706142697030,-500.0,0.0005178,31]
[312674608,1706142697039,-408.59132558,0.0005178,31]
[312674609,1706142697048,-500.0,0.0005178,31]
[312674610,1706142697058,-500.0,0.0005178,31]
[312674611,1706142697067,-569.39,0.0005178,31]
[312674612,1706142697077,-500.0,0.0005178,31]
[312674613,1706142697086,-500.0,0.0005178,31]
[312674614,1706142697095,-500.0,0.0005178,31]
[312674615,1706142697104,-523.11279636,0.0005178,31]
[312674616,1706142697114,-500.0,0.0005178,31]
[312674617,1706142697123,-500.0,0.0005178,31]
[312674618,1706142697133,-500.0,0.0005178,31]
[312674619,1706142697142,-185.85012594,0.0005178,31]
[312674620,1706142697152,-342.82900521,0.0005178,31]
[312674621,1706142697161,-500.0,0.0005178,31]
[312674622,1706142697171,-500.0,0.0005178,31]
[312674623,1706142697180,-500.0,0.0005178,31]
[312674624,1706142697189,-500.0,0.0005178,31]
[312674625,1706142697199,-500.0,0.0005178,31]
[312674626,1706142697208,-500.0,0.0005178,31]
[312674627,1706142697217,-187.99703922,0.0005178,31]
[312674628,1706142697226,-1012.49,0.0005178,31]
[312674629,1706142697236,-500.0,0.0005178,31]
[312674630,1706142697245,-555.93656687,0.0005178,31]
[312674631,1706142697254,-500.0,0.0005178,31]
[312674632,1706142697263,-500.0,0.0005178,31]
[312674633,1706142697273,-799.68,0.0005178,31]
[312674634,1706142697283,-500.0,0.0005178,31]
[312674635,1706142697291,-500.0,0.0005178,31]
[312674636,1706142697301,-500.0,0.0005178,31]
[312674637,1706142697310,-500.0,0.0005178,31]
[312674638,1706142697320,-500.0,0.0005178,31]
[312674639,1706142697330,-500.0,0.0005178,31]
[312674640,1706142697339,-500.0,0.0005178,31]
[312674641,1706142697347,-543.8,0.0005178,31]
[312674642,1706142697356,-500.0,0.0005178,31]
[312674643,1706142697365,-376.03686142,0.0005178,31]
[312674644,1706142697374,-986.07,0.0005178,31]
[312674645,1706142697384,-500.0,0.0005178,31]
[312674646,1706142697393,-500.0,0.0005178,31]
[312674647,1706142697402,-500.0,0.0005178,31]
[312674648,1706142697411,-500.0,0.0005178,31]
[312674649,1706142697419,-500.0,0.0005178,31]
[312674650,1706142697428,-500.0,0.0005178,31]
[312674651,1706142697437,-1153.66,0.0005178,31]
[312674652,1706142697445,-516.65,0.0005178,31]
[312674653,1706142697454,-500.0,0.0005178,31]
[312674654,1706142697463,-500.0,0.0005178,31]
[312674655,1706142697472,-1241.77,0.0005178,31]
[312674656,1706142697481,-500.0,0.0005178,31]
[312674657,1706142697490,-431.82854998,0.0005178,31]
[312674658,1706142697499,-500.0,0.0005178,31]
[312674659,1706142697508,-500.0,0.0005178,31]
[312674660,1706142697517,-500.0,0.0005178,31]
[312674661,1706142697526,-500.0,0.0005178,31]
[312674662,1706142697535,-500.0,0.0005178,31]
[312674663,1706142697544,-653.39,0.0005178,31]
[312674664,1706142697553,-500.0,0.0005178,31]
[312674665,1706142697563,-836.07,0.0005178,31]
[312674666,1706142697572,-378.17613182,0.0005178,31]
[312674667,1706142697582,-756.21,0.0005178,31]
[312674668,1706142697592,-515.25,0.0005178,31]
[312674669,1706142697601,-500.01662218,0.0005178,31]
[312674670,1706142697611,-1013.31,0.0005178,31]
[312674671,1706142697620,-500.0,0.0005178,31]
[312674672,1706142697630,-616.32,0.0005178,31]
[312674673,1706142697640,-528.69,0.0005178,31]
[312674674,1706142697651,-500.0,0.0005178,31]
[312674675,1706142697661,-500.0,0.0005178,31]
[312674676,1706142697671,-956.92,0.0005178,31]
[312674677,1706142697680,-500.0,0.0005178,31]
[312674678,1706142697690,-186.84,0.0005178,31]
[312674679,1706142697700,-500.0,0.0005178,31]
[312674680,1706142697710,-998.0,0.0005178,31]
[312674681,1706142697720,-500.0,0.0005178,31]
[312674682,1706142697730,-682.58,0.0005178,31]
[312674683,1706142697740,-500.0,0.0005178,31]
[312674684,1706142697749,-4855.5,0.0005178,31]
[312674685,1706142697759,-500.0,0.0005178,31]
[312674686,1706142697768,-500.0,0.0005178,31]
[312674687,1706142697778,-500.0,0.0005178,31]
[312674688,1706142697788,-2993.87,0.0005178,31]
[312674689,1706142697799,-500.0,0.0005178,31]
[312674690,1706142697810,-500.0,0.0005178,31]
[312674691,1706142697821,-5084.18,0.0005178,5]
[312674692,1706142697831,-1768.63,0.0005178,31]
[312674693,1706142697840,-900.81,0.0005178,31]
[312674694,1706142697850,-531.92,0.0005178,31]
[312674695,1706142697859,-1000.0,0.0005178,7]
[312674696,1706142697868,-500.0,0.0005178,31]
[312674697,1706142697877,-500.0,0.0005178,31]
[312674698,1706142697887,-801.09,0.0005178,31]
[312674699,1706142697897,-500.0,0.0005178,31]
[312674700,1706142697907,-500.0,0.0005178,31]
[312674701,1706142697917,-500.0,0.0005178,31]
[312674702,1706142697926,-524.49,0.0005178,31]
[312674703,1706142697936,-500.0,0.0005178,31]
[312674704,1706142697945,-500.0,0.0005178,31]
[312674705,1706142697954,-500.0,0.0005178,31]
[312674706,1706142697965,-395.44354654,0.0005178,31]
[312674707,1706142697975,-544.16,0.0005178,31]
[312674708,1706142697985,-2294.01,0.0005178,31]
[312674709,1706142697995,-500.0,0.0005178,31]
[312674710,1706142698005,-500.0,0.0005178,31]
[312674711,1706142698015,-671.26,0.0005178,31]
[312674712,1706142698025,-500.0,0.0005178,31]
[312674713,1706142698035,-583.12,0.0005178,31]
[312674714,1706142698045,-830.43,0.0005178,31]
[312674715,1706142698055,-652.75,0.0005178,31]
[312674716,1706142698064,-556.8,0.0005178,31]
[312674717,1706142698074,-500.0,0.0005178,31]
[312674718,1706142698085,-545.42,0.0005178,31]
[312674719,1706142698095,-2589.2,0.0005178,31]
[312674720,1706142698104,-541.32,0.0005178,31]
[312674721,1706142698115,-500.0,0.0005178,31]
[312674722,1706142698126,-500.0,0.0005178,31]
[312674723,1706142698135,-545.58,0.0005178,31]
[312674724,1706142698145,-500.0,0.0005178,31]
[312674725,1706142698154,-659.09,0.0005178,31]
[312674726,1706142698164,-586.96,0.0005178,31]
[312674727,1706142698173,-2351.31,0.0005178,31]
[312674728,1706142698183,-1206.46,0.0005178,31]
[312674729,1706142698192,-583.57,0.0005178,31]
[312674730,1706142698202,-524.43,0.0005178,31]
[312674731,1706142698212,-500.0,0.0005178,31]
[312674732,1706142698221,-596.67,0.0005178,31]
[312674733,1706142698231,-966.39,0.0005178,31]
[312674734,1706142698241,-500.0,0.0005178,31]
[312674735,1706142698250,-209.74851988,0.0005178,31]
[312674736,1706142698260,-612.43,0.0005178,31]
[312674737,1706142698270,-683.16,0.0005178,31]
[312674738,1706142698279,-500.0,0.0005178,31]
[312674739,1706142698288,-710.01,0.0005178,31]
[312674740,1706142698298,-1407.74,0.0005178,31]
[312674741,1706142698307,-500.0,0.0005178,31]
[312674742,1706142698317,-5543.02,0.0005178,31]
[312674743,1706142698329,-500.0,0.0005178,31]
[312674744,1706142698338,-2066.55,0.0005178,31]
[312674745,1706142698348,-500.0,0.0005178,31]
[312674746,1706142698358,-620.76,0.0005178,31]
[312674747,1706142698368,-1016.7,0.0005178,31]
[312674748,1706142698378,-1226.31,0.0005178,31]
[312674749,1706142698387,-500.0,0.0005178,31]
[312674750,1706142698397,-563.82,0.0005178,31]
[312674751,1706142698406,-742.38,0.0005178,31]
[312674752,1706142698416,-552.79,0.0005178,31]
[312674753,1706142698425,-500.0,0.0005178,31]
[312674754,1706142698435,-547.01,0.0005178,31]
[312674755,1706142698445,-500.0,0.0005178,31]
[312674756,1706142698455,-3013.17,0.0005178,31]
[312674757,1706142698464,-514.66,0.0005178,31]
[312674758,1706142698473,-540.87,0.0005178,31]
[312674759,1706142698483,-712.54,0.0005178,31]
[312674760,1706142698492,-2280.94,0.0005178,31]
[312674761,1706142698502,-778.86,0.0005178,31]
[312674762,1706142698511,-950.67,0.0005178,31]
[312674763,1706142698521,-500.0,0.0005178,31]
[312674764,1706142698530,-500.0,0.0005178,31]
[312674765,1706142698539,-500.0,0.0005178,31]
[312674766,1706142698548,-500.0,0.0005178,31]
[312674767,1706142698558,-500.0,0.0005178,31]
[312674768,1706142698567,-1663.46,0.0005178,31]
[312674769,1706142698577,-500.0,0.0005178,31]
[312674770,1706142698587,-649.21,0.0005178,31]
[312674771,1706142698598,-1247.69,0.0005178,31]
[312674772,1706142698607,-787.85,0.0005178,31]
[312674773,1706142698617,-1073.61,0.0005178,31]
[312674774,1706142698627,-572.12845964,0.0005178,31]
[312674775,1706142698637,-500.0,0.0005178,31]
[312674776,1706142698647,-500.0,0.0005178,31]
[312674777,1706142698657,-500.0,0.0005178,31]
[312674778,1706142698667,-1265.65,0.0005178,31]
[312674779,1706142698677,-618.27,0.0005178,31]
[312674780,1706142698687,-500.0,0.0005178,31]
[312674781,1706142698697,-500.0,0.0005178,31]
[312674782,1706142698706,-3061.04,0.0005178,31]
[312674783,1706142698716,-2426.6,0.0005178,31]
[312674784,1706142698727,-500.0,0.0005178,31]
[312674785,1706142698737,-1315.35,0.0005178,31]
[312674786,1706142698746,-700.1,0.0005178,31]
[312674787,1706142698756,-660.57,0.0005178,31]
[312674788,1706142698766,-500.0,0.0005178,31]
[312674789,1706142698776,-706.67,0.0005178,31]
[312674790,1706142698786,-500.0,0.0005178,31]
[312674791,1706142698797,-860.59,0.0005178,31]
[312674792,1706142698809,-733.61,0.0005178,31]
[312674793,1706142698818,-1000.0,0.0005178,7]
[312674794,1706142698830,-553.53,0.0005178,31]
[312674795,1706142698839,-501.79,0.0005178,31]
[312674796,1706142698849,-605.74,0.0005178,31]
[312674797,1706142698858,-500.0,0.0005178,31]
[312674798,1706142698868,-500.0,0.0005178,31]
[312674799,1706142698878,-564.19,0.0005178,31]
[312674800,1706142698889,-500.0,0.0005178,31]
[312674801,1706142698898,-740.74,0.0005178,31]
[312674802,1706142698908,-500.0,0.0005178,31]
[312674803,1706142698917,-1295.4,0.0005178,31]
[312674804,1706142698927,-519.74,0.0005178,31]
[312674805,1706142698937,-500.0,0.0005178,31]
[312674806,1706142698947,-500.0,0.0005178,31]
[312674807,1706142698957,-500.0,0.0005178,31]
[312674808,1706142698966,-649.59,0.0005178,31]
[312674809,1706142698976,-500.0,0.0005178,31]
[312674810,1706142698986,-537.1,0.0005178,31]
[312674811,1706142698995,-599.29,0.0005178,31]
[312674812,1706142699005,-765.11,0.0005178,31]
[312674813,1706142699014,-3710.41,0.0005178,31]
[312674814,1706142699025,-500.0,0.0005178,31]
[312674815,1706142699034,-500.0,0.0005178,31]
[312674816,1706142699044,-500.0,0.0005178,31]
[312674817,1706142699055,-1451.54,0.0005178,31]
[312674818,1706142699064,-500.0,0.0005178,31]
[312674819,1706142699074,-737.72,0.0005178,31]
[312674820,1706142699085,-658.3,0.0005178,31]
[312674821,1706142699095,-500.0,0.0005178,31]
[312674822,1706142699105,-500.0,0.0005178,31]
[312674823,1706142699114,-500.0,0.0005178,31]
[312674824,1706142699124,-748.16,0.0005178,31]
[312674825,1706142699133,-536.66,0.0005178,31]
[312674826,1706142699142,-500.0,0.0005178,31]
[312674827,1706142699153,-655.7,0.0005178,31]
[312674828,1706142699162,-937.73,0.0005178,2]
[312674829,1706142699172,-678.69,0.0005178,31]
[312674830,1706142699182,-500.0,0.0005178,31]
[312674831,1706142699192,-764.66,0.0005178,31]
[312674832,1706142699202,-500.0,0.0005178,31]
[312674833,1706142699211,-673.27,0.0005178,31]
[312674834,1706142699221,-820.44,0.0005178,31]
[312674835,1706142699231,-797.85,0.0005178,31]
[312674836,1706142699241,-500.0,0.0005178,31]
[312674837,1706142699250,-500.0,0.0005178,31]
[312674838,1706142699260,-500.0,0.0005178,31]
[312674839,1706142699270,-500.0,0.0005178,31]
[312674840,1706142699280,-618.86,0.0005178,31]
[312674841,1706142699289,-515.5,0.0005178,31]
[312674842,1706142699299,-500.0,0.0005178,31]
[312674843,1706142699309,-792.67,0.0005178,31]
[312674844,1706142699319,-1129.79,0.0005178,31]
[312674845,1706142699330,-717.84,0.0005178,31]
[312674846,1706142699340,-500.0,0.0005178,31]
[312674847,1706142699349,-500.0,0.0005178,31]
[312674848,1706142699359,-510.96,0.0005178,31]
[312674849,1706142699369,-500.0,0.0005178,31]
[312674850,1706142699379,-600.26,0.0005178,31]
[312674851,1706142699388,-689.9,0.0005178,31]
[312674852,1706142699398,-500.0,0.0005178,31]
[312674853,1706142699408,-594.93,0.0005178,2]
[312674854,1706142699418,-738.6,0.0005178,31]
[312674855,1706142699428,-724.18,0.0005178,31]
[312674856,1706142699437,-757.86,0.0005178,2]
[312674857,1706142699447,-1187.72,0.0005178,31]
[312674858,1706142699456,-754.82,0.0005178,31]
[312674859,1706142699466,-500.0,0.0005178,31]
[312674860,1706142699476,-500.0,0.0005178,31]
[312674861,1706142699486,-500.0,0.0005178,31]
[312674862,1706142699496,-1281.32,0.0005178,31]
[312674863,1706142699506,-2728.94,0.0005178,31]
[312674864,1706142699515,-557.24,0.0005178,31]
[312674865,1706142699525,-400.0,0.00051781,30]
[312674866,1706142699534,-153.21386405,0.00051784,60]
[312674867,1706142699544,-487.42349504,0.00051788,60]
[312674868,1706142699554,-164.81285387,0.00051795,60]
[312674869,1706142699563,-150.0,0.00051809,7]
[312674870,1706142699573,-150.0,0.00051813,7]
[312674871,1706142699584,-150.0,0.00051824,7]
[312674872,1706142699593,-487.42349504,0.00051828,60]
[312674873,1706142699603,-150.0,0.00051841,7]
[312674874,1706142699612,-164.81285387,0.00051852,60]
[312674875,1706142699623,-154.44443256,0.0005186,60]
[312674876,1706142699632,-374.74972718,0.00051861,60]
[312674877,1706142699642,-392.16327829,0.00051862,60]
[312674878,1706142699652,-150.0,0.00051877,7]
[312674879,1706142699662,-150.0,0.00051886,7]
[312674880,1706142699672,-150.37716717,0.00051892,60]
[312674881,1706142699681,-17434.0,0.000519,120]
[312674882,1706142699692,-210.0,0.000519,40]
[312674883,1706142699702,-400.0,0.000519,18]
[312674884,1706142699711,-150.0,0.00051902,7]
[312674885,1706142699722,-487.42349504,0.00051902,60]
[312674886,1706142699732,-374.74972718,0.00051907,60]
[312674887,1706142699742,-150.0,0.00051937,7]
[312674888,1706142699752,-2577.64223759,0.0005194,120]
[312674889,1706142699762,-150.0,0.00051943,11]
[312674890,1706142699772,-655.94646981,0.00051944,120]
[312674891,1706142699783,-155.0,0.00051944,60]
[312674892,1706142699792,-6772.25002536,0.00051947,30]
[312674893,1706142699803,-150.0,0.00051948,7]
[312674894,1706142699817,-150.0,0.00051949,7]
[312674895,1706142699827,-4758.82774185,0.00051954,30]
[312674896,1706142699836,-150.37716717,0.00051955,60]
[312674897,1706142699846,-694.07593327,0.00051959,30]
[312674898,1706142699856,-6772.25002536,0.00051959,30]
[312674899,1706142699866,-200.0,0.00051965,30]
[312674900,1706142699875,-694.07593327,0.00051967,30]
[312674901,1706142699885,-6772.25002536,0.00051967,30]
[312674902,1706142699895,-4758.82774185,0.00051969,30]
[312674903,1706142699905,-150.0,0.0005197,7]
[312674904,1706142699915,-694.07593327,0.00051973,30]
[312674905,1706142699925,-156.42670912,0.00051982,60]
[312674906,1706142699935,-4758.82774185,0.00051984,30]
[312674907,1706142699945,-6772.25002536,0.00051985,30]
[312674908,1706142699955,-284.0,0.0005199,2]
[312674909,1706142699965,-181.0,0.0005199,2]
[312674910,1706142699975,-694.07593327,0.00051992,30]
[312674911,1706142699985,-4758.82774185,0.00051997,30]
[312674912,1706142699995,-2610.35304989,0.00052,2]
[312674913,1706142700005,-599.99999905,0.00052,53]
[312674914,1706142700015,-200.0,0.00052,120]
[312674915,1706142700025,-200.0,0.00052,30]
[312674916,1706142700034,-200.0,0.00052,120]
[312674917,1706142700044,-633.0,0.00052,120]
[312674918,1706142700053,-210.0,0.00052,120]
[312674919,1706142700062,-300.0,0.00052,30]
[312674920,1706142700073,-150.0,0.00052,30]
[312674921,1706142700083,-392.16327829,0.00052015,60]
[312674922,1706142700094,-1338.7845779,0.00052018,2]
[312674923,1706142700104,-1000.0,0.00052019,4]
[312674924,1706142700114,-150.37716717,0.0005202,60]
[312674925,1706142700125,-150.0,0.0005203,7]
[312674926,1706142700134,-150.0,0.00052033,7]
[312674927,1706142700144,-150.0,0.00052039,7]
[312674928,1706142700154,-500.0,0.00052054,31]
[312674929,1706142700164,-595.87,0.00052054,31]
[312674930,1706142700173,-500.0,0.00052054,31]
[312674931,1706142700183,-500.0,0.00052054,31]
[312674932,1706142700193,-545.8,0.00052054,31]
[312674933,1706142700203,-500.0,0.00052054,31]
[312674934,1706142700212,-1000.0,0.00052054,120]
[312674935,1706142700223,-1000.0,0.00052054,120]
[312674936,1706142700233,-1000.0,0.00052054,120]
[312674937,1706142700242,-1000.0,0.00052054,120]
[312674938,1706142700252,-1000.0,0.00052054,120]
[312674939,1706142700262,-1000.0,0.00052054,120]
[312674940,1706142700272,-1000.00980872,0.00052054,120]
[312674941,1706142700282,-500.0,0.00052054,31]
[312674942,1706142700291,-500.0,0.00052054,31]
[312674943,1706142700301,-500.0,0.00052054,31]
[312674944,1706142700311,-500.0,0.00052054,31]
[312674945,1706142700321,-500.0,0.00052054,31]
[312674946,1706142700332,-460.63408278,0.00052054,31]
[312674947,1706142700342,-500.0,0.00052054,31]
[312674948,1706142700352,-500.0,0.00052054,31]
[312674949,1706142700362,-500.0,0.00052054,31]
[312674950,1706142700371,-500.0,0.00052054,31]
[312674951,1706142700382,-500.0,0.00052054,31]
[312674952,1706142700392,-500.0,0.00052054,31]
[312674953,1706142700402,-219.72038363,0.00052054,31]
[312674954,1706142700411,-626.30306742,0.00052054,31]
[312674955,1706142700421,-500.0,0.00052054,31]
[312674956,1706142700431,-500.0,0.00052054,31]
[312674957,1706142700441,-500.0,0.00052054,31]
[312674958,1706142700451,-416.47626112,0.00052054,31]
[312674959,1706142700461,-500.0,0.00052054,31]
[312674960,1706142700471,-500.0,0.00052054,31]
[312674961,1706142700480,-500.0,0.00052054,31]
[312674962,1706142700490,-500.0,0.00052054,31]
[312674963,1706142700499,-500.0,0.00052054,20]
[312674964,1706142700510,-500.0,0.00052054,31]
[312674965,1706142700519,-500.0,0.00052054,31]
[312674966,1706142700529,-500.0,0.00052054,14]
[312674967,1706142700539,-169.45364858,0.00052054,31]
[312674968,1706142700549,-514.07875652,0.00052054,31]
[312674969,1706142700559,-500.0,0.00052054,31]
[312674970,1706142700568,-500.0,0.00052054,31]
[312674971,1706142700580,-500.0,0.00052054,31]
[312674972,1706142700590,-500.0,0.00052054,31]
[312674973,1706142700599,-1202.05,0.00052054,31]
[312674974,1706142700609,-546.04,0.00052054,31]
[312674975,1706142700619,-500.0,0.00052054,31]
[312674976,1706142700628,-500.0,0.00052054,31]
[312674977,1706142700638,-689.23,0.00052054,2]
[312674978,1706142700648,-839.27,0.00052054,2]
[312674979,1706142700658,-500.0,0.00052054,31]
[312674980,1706142700668,-500.0,0.00052054,31]
[312674981,1706142700681,-1213.27,0.00052054,31]
[312674982,1706142700690,-500.0,0.00052054,31]
[312674983,1706142700700,-266.47773495,0.00052054,31]
[312674984,1706142700711,-689.7,0.00052054,31]
[312674985,1706142700898,-500.0,0.00052054,31]
[312674986,1706142700909,-688.21,0.00052054,31]
[312674987,1706142700918,-500.0,0.00052054,2]
[312674988,1706142700928,-582.57304756,0.00052054,31]
[312674989,1706142700938,-527.15,0.00052054,31]
[312674990,1706142700947,-500.0,0.00052054,2]
[312674991,1706142700957,-500.0,0.00052054,31]
[312674992,1706142700966,-556.3,0.00052054,31]
[312674993,1706142700975,-976.84,0.00052054,7]
[312674994,1706142700985,-500.0,0.00052054,31]
[312674995,1706142700994,-565.89,0.00052054,31]
[312674996,1706142701004,-500.0,0.00052054,31]
[312674997,1706142701013,-509.12682349,0.00052054,31]
[312674998,1706142701022,-500.0,0.00052054,31]
[312674999,1706142701032,-500.0,0.00052054,31]
[312675000,1706142701041,-500.0,0.00052054,31]
[312675001,1706142701051,-500.0,0.00052054,31]
[312675002,1706142701060,-500.0,0.00052054,31]
[312675003,1706142701070,-500.0,0.00052054,31]
[312675004,1706142701079,-500.0,0.00052054,31]
[312675005,1706142701088,-500.0,0.00052054,31]
[312675006,1706142701098,-562.5,0.00052054,120]
[312675007,1706142701107,-500.0,0.00052054,31]
[312675008,1706142701116,-500.0,0.00052054,31]
[312675009,1706142701126,-500.0,0.00052054,31]
[312675010,1706142701137,-500.0,0.00052054,31]
[312675011,1706142701146,-781.79,0.00052054,31]
[312675012,1706142701155,-500.0,0.00052054,31]
[312675013,1706142701165,-500.0,0.00052054,31]
[312675014,1706142701174,-500.0,0.00052054,31]
[312675015,1706142701183,-441.84774098,0.00052054,31]
[312675016,1706142701192,-500.0,0.00052054,31]
[312675017,1706142701202,-500.0,0.00052054,31]
[312675018,1706142701211,-500.0,0.00052054,31]